bitfinex/quotes_ETHUSD_20250602
["timestamp","ask_amount","ask_price","bid_price","bid_amount"]
[1748907700444,0.04789524,2610.0,2609.7,3.83177214]
[1748907701084,0.04789524,2610.0,2609.6,3.83196528]
[1748907701349,0.04789524,2610.0,2609.1,3.85270178]
[1748907701553,0.04789524,2610.0,2609.7,3.83176351]
[1748907701761,0.04789524,2610.0,2609.2,3.83259236]
[1748907702072,0.04789524,2610.0,2609.3,3.83244548]
[1748907702234,0.04789524,2610.0,2609.7,3.83177776]
[1748907703054,0.04789524,2610.0,2609.1,11.85269389]
[1748907703055,0.04789524,2610.0,2609.6,3.8319772]
[1748907703428,0.04789524,2610.0,2609.1,11.85264927]
[1748907703631,0.04789524,2610.0,2609.1,8.40162414]
[1748907703836,0.8761,2609.8,2609.1,0.02]
[1748907704162,0.04790268,2609.7,2609.2,3.83256975]
[1748907704460,4.292,2609.6,2609.2,3.83259236]
[1748907704660,0.04790429,2609.5,2609.3,3.83242877]
[1748907704825,0.04790429,2609.5,2609.1,0.02]
[1748907705024,4.292,2609.6,2609.1,0.02]
[1748907705025,0.8761,2609.8,2609.3,3.83239676]
[1748907705231,0.8761,2609.8,2609.7,3.83185806]
[1748907705431,5.1681,2609.8,2609.7,3.83185806]
[1748907705969,5.1671,2609.8,2609.6,3.83197369]
[1748907706141,5.1671,2609.8,2609.5,3.83208646]
[1748907706343,5.1671,2609.8,2609.4,3.83220165]
[1748907706556,5.81359959,2609.8,2609.5,3.83213627]
[1748907707145,5.81359959,2609.8,2609.5,3.83205748]
[1748907707347,0.8761,2609.8,2609.7,3.83185806]
[1748907707542,5.1631,2609.8,2609.7,3.83185806]
[1748907708351,5.1631,2609.8,2609.5,3.83207759]
[1748907708752,5.1631,2609.8,2609.1,3.85262286]
[1748907708753,5.1631,2609.8,2609.7,3.83185806]
[1748907709469,5.1551,2609.8,2609.6,3.83195465]
[1748907710283,2.159,2610.3,2609.1,3.85270829]
[1748907710640,2.159,2610.3,2609.9,3.83146147]
[1748907710834,4.276,2610.2,2609.9,3.83146147]
[1748907711174,0.43804162,2610.6,2610.2,3.83112405]
[1748907711375,0.43804162,2610.6,2610.4,3.83074805]
[1748907711376,0.9284,2610.6,2610.4,3.83074805]
[1748907711675,4.282,2610.5,2610.4,3.83074805]
[1748907711978,4.281,2610.5,2610.4,3.83074805]
[1748907712277,4.281,2610.5,2610.2,3.83108322]
[1748907712940,4.281,2610.5,2610.3,3.83095274]
[1748907713143,0.9284,2610.6,2610.4,3.83082305]
[1748907713459,4.276,2610.5,2610.4,3.83082305]
[1748907713668,4.276,2610.5,2610.3,3.83092288]
[1748907713854,4.276,2610.5,2610.2,3.83105839]
[1748907714278,4.276,2610.5,2610.3,3.83090348]
[1748907714473,4.276,2610.5,2610.2,3.83105749]
[1748907714976,4.276,2610.5,2610.1,3.83124291]
[1748907715443,4.92622844,2610.5,2609.4,0.5943805]
[1748907715642,4.97411547,2610.5,2610.0,3.83132261]
[1748907715842,4.97411547,2610.5,2610.1,3.83126226]
[1748907716040,4.267,2610.4,2610.2,3.83112078]
[1748907716362,4.266,2610.3,2609.5,0.5943805]
[1748907716679,4.31388701,2610.3,2609.4,3.83229861]
[1748907716874,4.31388701,2610.3,2610.0,3.83137163]
[1748907717091,4.267,2610.2,2609.6,3.83197267]
[1748907717282,4.267,2610.2,2610.1,3.83127083]
[1748907717653,4.267,2610.3,2609.4,3.83229861]
[1748907717969,1.25,2610.5,2610.3,3.83085703]
[1748907718166,4.46868282,2611.2,2609.8,6.56579954]
[1748907718167,1.25,2611.4,2610.1,6.56579954]
[1748907718369,0.57148663,2611.7,2611.4,3.82936355]
[1748907718575,0.57148663,2611.7,2610.4,6.56579954]
[1748907718576,0.15,2611.7,2611.6,3.8290703]
[1748907719182,0.17,2611.9,2611.3,3.8295102]
[1748907719362,4.441,2611.9,2611.7,3.82881854]
[1748907719687,0.5355,2611.8,2611.7,3.82892368]
[1748907720271,0.17,2611.9,2611.5,3.82911535]
[1748907720459,0.17,2611.9,2611.7,3.82878487]
[1748907720799,0.17,2611.9,2611.8,3.82877708]
[1748907723395,0.17,2611.9,2611.8,3.87427708]
[1748907724477,0.17,2611.9,2611.4,3.8292228]
[1748907724677,0.70662,2611.9,2611.7,3.82891602]
[1748907724985,4.431,2611.9,2611.7,3.82878683]
[1748907725192,4.431,2611.9,2611.8,3.82877708]
[1748907725389,0.17,2611.9,2611.8,3.82877708]
[1748907726607,0.17,2611.9,2611.8,3.87427708]
[1748907729877,0.02,2612.9,2612.8,3.82731169]
[1748907730175,0.02,2612.9,2612.8,3.87281169]
[1748907730821,0.02,2612.9,2612.8,3.82731169]
[1748907736318,0.02,2612.9,2612.8,3.87281169]
[1748907740266,0.02,2612.9,2612.8,3.82731169]
[1748907741161,0.02,2612.9,2612.6,1.67294036]
[1748907741324,0.02,2612.9,2612.8,3.82731169]
[1748907744727,0.9625,2612.8,2612.6,3.82747791]
[1748907744928,0.9625,2612.8,2612.4,3.8277932]
[1748907745164,0.9625,2612.8,2612.3,3.82800119]
[1748907745352,0.9586,2612.6,2612.2,3.82813523]
[1748907745552,1.64814442,2612.6,2612.3,3.8280408]
[1748907746260,1.64814442,2612.6,2612.2,3.82819079]
[1748907746456,1.64814442,2612.6,2612.3,3.82800598]
[1748907746635,0.04784844,2612.5,2611.6,0.0455]
[1748907746836,0.15,2612.4,2612.1,3.82825141]
[1748907747147,0.15,2612.4,2612.2,3.82818621]
[1748907747343,0.19785212,2612.5,2612.2,3.82818621]
[1748907747548,0.74349965,2612.5,2612.3,3.82799805]
[1748907748435,0.74349965,2612.5,2611.8,3.82877708]
[1748907748636,0.74349965,2612.5,2612.1,3.82819586]
[1748907748968,0.74349965,2612.5,2611.6,0.0455]
[1748907749265,0.8805,2612.3,2611.9,3.82854703]
[1748907749465,0.8805,2612.3,2611.5,3.82914637]
[1748907749681,0.15,2612.2,2611.9,3.8285347]
[1748907749974,4.226,2612.1,2611.5,3.82915759]
[1748907750148,1.52074588,2612.0,2611.5,3.82907154]
[1748907751036,1.52074588,2612.0,2610.8,4.42450759]
[1748907751037,0.9459,2611.9,2610.8,4.42450759]
[1748907751255,0.9459,2611.7,2611.3,3.82949467]
[1748907751437,4.27486719,2611.6,2611.3,3.82949467]
[1748907751641,4.27486719,2611.6,2610.6,7.16018004]
[1748907751842,0.52207672,2611.5,2611.4,3.82936355]
[1748907752071,4.376,2611.5,2611.4,3.82936355]
[1748907752279,0.15,2611.5,2611.4,3.82936355]
[1748907753874,0.15,2611.5,2611.3,3.82943083]
[1748907754178,0.15,2611.5,2611.3,3.8295102]
[1748907754506,0.15,2611.5,2611.4,3.77936355]
[1748907754871,5.3249,2611.7,2610.8,3.8302436]
[1748907755199,4.76149,2611.6,2611.5,3.82921692]
[1748907755403,4.379,2611.6,2611.5,3.82921692]
[1748907755890,4.379,2611.6,2611.4,3.77931974]
[1748907756090,4.42686544,2611.6,2611.2,3.82965686]
[1748907756284,4.42686544,2611.6,2610.9,3.83005044]
[1748907756584,0.9415,2611.5,2611.1,3.82970365]
[1748907756784,1.38418654,2611.5,2610.8,3.83013583]
[1748907757152,1.38418654,2611.5,2611.0,3.82986427]
[1748907757352,0.04787454,2611.4,2610.9,3.83005223]
[1748907757554,0.9332,2611.3,2610.5,3.83061752]
[1748907757797,0.9332,2611.3,2611.1,3.82971848]
[1748907758517,4.224,2611.2,2610.8,3.83020896]
[1748907758664,0.9302,2611.0,2610.7,3.83029953]
[1748907758867,0.15,2610.9,2610.2,3.83103091]
[1748907759064,0.19787953,2610.9,2610.7,3.83030151]
[1748907759381,0.19787953,2610.9,2610.6,3.83048031]
[1748907759951,0.15,2610.9,2610.1,0.02]
[1748907760189,0.15,2610.9,2610.6,3.83048184]
[1748907760371,0.43454079,2610.9,2610.6,3.83048184]
[1748907760669,0.43454079,2610.9,2610.1,0.02]
[1748907760873,0.43454079,2610.9,2610.5,3.83059866]
[1748907761968,0.43454079,2610.9,2610.2,3.83112405]
[1748907762300,0.43454079,2610.9,2610.7,3.83030819]
[1748907762592,0.43454079,2610.9,2610.6,3.83051665]
[1748907763190,0.43454079,2610.9,2610.5,3.83060155]
[1748907763367,0.43454079,2610.9,2610.6,3.8305146]
[1748907763779,0.925,2610.7,2610.4,3.83074044]
[1748907764127,5.134,2610.7,2610.1,0.02]
[1748907764311,0.15,2610.6,2610.5,3.83058011]
[1748907764475,0.15,2610.6,2610.4,3.83077171]
[1748907764806,0.04788646,2610.5,2610.1,0.02]
[1748907764970,0.04788646,2610.5,2610.2,3.8310148]
[1748907765583,0.04788646,2610.5,2610.2,3.83112405]
[1748907765789,0.15,2610.4,2610.3,3.83097728]
[1748907766114,0.15,2610.6,2610.5,3.83068377]
[1748907768509,0.15,2610.6,2610.4,3.83076747]
[1748907768713,0.15,2610.5,2610.4,3.83083052]
[1748907770009,0.15,2610.5,2610.3,3.83090959]
[1748907770430,0.19788721,2610.5,2610.3,3.83090959]
[1748907770600,0.19788721,2610.5,2610.2,3.83108442]
[1748907770785,0.9303,2610.4,2610.1,0.02]
[1748907770991,0.0478937,2610.3,2610.1,0.02]
[1748907771324,2.1303,2610.4,2610.2,3.83112405]
[1748907771525,2.17819116,2610.4,2610.1,3.851238]
[1748907771699,0.28607199,2610.3,2610.1,3.85113865]
[1748907772508,2.1303,2610.4,2610.2,3.83104609]
[1748907772819,2.1303,2610.4,2610.1,0.02]
[1748907772820,0.97819116,2610.4,2610.1,0.02]
[1748907773123,4.192,2610.3,2610.2,3.83112405]
[1748907773326,4.191,2610.5,2610.2,3.83112405]
[1748907773628,4.77798132,2610.5,2610.1,3.8512252]
[1748907774332,4.77798132,2610.5,2610.2,3.83105639]
[1748907774541,4.77798132,2610.5,2610.1,3.85115541]
[1748907775110,4.77798132,2610.5,2610.1,0.02]
[1748907775310,0.98085256,2610.4,2610.1,0.02]
[1748907775847,0.04788132,2610.3,2610.1,0.02]
[1748907776251,0.9581,2610.2,2610.1,0.02]
[1748907777479,0.9145,2610.2,2610.1,0.02]
[1748907777624,5.29562405,2610.2,2610.1,0.02]
[1748907777825,9.14391533,2610.2,2610.1,0.02]
[1748907778031,12.92715806,2610.2,2610.1,0.02]
[1748907778231,9.09603401,2610.2,2610.1,0.02]
[1748907778471,12.92715806,2610.2,2610.1,0.02]
[1748907778679,20.92715806,2610.2,2610.1,0.02]
[1748907778864,17.09603401,2610.2,2610.1,0.02]
[1748907779566,17.4551473,2610.2,2610.1,0.02]
[1748907779743,15.91023447,2610.2,2610.1,0.02]
[1748907779938,11.18123447,2610.2,2610.1,0.02]
[1748907780238,0.9145,2610.2,2610.1,0.02]
[1748907780633,0.96238132,2610.2,2610.1,0.02]
[1748907780826,1.32143907,2610.2,2610.1,0.02]
[1748907781063,0.96238132,2610.2,2610.1,0.02]
[1748907783474,4.79350537,2610.2,2610.1,0.02]
[1748907783628,7.59174101,2610.2,2610.1,0.02]
[1748907783832,3.40149525,2610.2,2610.1,0.02]
[1748907784044,3.95149525,2610.2,2610.1,0.02]
[1748907784840,0.9145,2610.2,2610.1,0.02]
[1748907785066,1.27361714,2610.2,2610.1,0.02]
[1748907786345,1.27361714,2610.2,2609.8,3.83169182]
[1748907786346,1.27361714,2610.2,2609.6,0.9845]
[1748907786567,1.27361714,2610.2,2609.9,3.83147676]
[1748907786735,0.35911714,2610.2,2609.7,3.83185806]
[1748907786936,0.35911714,2610.2,2610.1,3.83127083]
[1748907791674,0.35911714,2610.2,2609.3,8.0]
[1748907791877,0.35911714,2610.2,2610.0,3.83134257]
[1748907794079,0.35911714,2610.2,2609.9,3.83151659]
[1748907794278,0.35911714,2610.2,2610.0,3.83141115]
[1748907795063,0.35911714,2610.2,2610.0,3.83128379]
[1748907795282,0.35911714,2610.2,2610.1,3.83127083]
[1748907795646,0.35911714,2610.2,2610.1,3.88387083]
[1748907795841,0.35911714,2610.2,2610.1,20.49617083]
[1748907796079,1.0021,2611.9,2611.8,3.82877708]
[1748907796383,1.0021,2611.9,2611.3,3.8295102]
[1748907796384,1.21891,2611.9,2611.3,0.00952545]
[1748907796544,1.21891,2611.9,2611.7,3.82884209]
[1748907796747,1.21891,2611.9,2611.3,0.00952545]
[1748907796748,1.26677233,2611.9,2611.5,3.82912623]
[1748907796951,1.26677233,2611.9,2611.2,3.88223569]
[1748907796952,1.26677233,2611.9,2611.6,3.82902187]
[1748907797157,1.26677233,2611.9,2611.2,3.88216522]
[1748907797384,0.23681,2611.9,2611.8,3.82877708]
[1748907797550,0.02,2611.9,2611.8,3.82877708]
[1748907799508,0.02,2611.9,2611.8,3.8908995]
[1748907800905,0.9862,2611.7,2610.7,3.83024614]
[1748907801108,8.0,2611.5,2610.8,3.83019941]
[1748907801287,5.42387819,2611.4,2610.9,3.83007906]
[1748907801668,0.04787819,2611.4,2610.4,0.37416124]
[1748907801877,0.04787128,2611.6,2611.2,3.82960146]
[1748907802204,0.04787128,2611.6,2611.1,3.82974425]
[1748907802375,0.57237841,2611.6,2611.2,3.82960121]
[1748907802573,0.57237841,2611.6,2610.6,8.0]
[1748907802774,5.1972,2611.7,2611.2,3.82953149]
[1748907803074,5.24506816,2611.7,2611.1,3.82974707]
[1748907803375,5.24506816,2611.7,2610.6,8.0]
[1748907803376,5.24506816,2611.7,2611.3,3.82950841]
[1748907804170,5.23906816,2611.7,2611.3,3.82950841]
[1748907804913,5.23906816,2611.7,2611.1,3.82979419]
[1748907805110,0.9862,2611.7,2610.8,3.8302436]
[1748907805296,0.02,2611.9,2611.1,0.0526]
[1748907806100,0.06786262,2611.9,2611.4,3.82924499]
[1748907806508,0.06786262,2611.9,2611.5,3.82912709]
[1748907806707,0.70973888,2611.9,2611.5,3.82912709]
[1748907807018,0.66187626,2611.9,2611.3,8.0]
[1748907807225,0.02,2611.9,2611.7,3.8288376]
[1748907807582,0.02,2611.9,2611.8,3.82877708]
[1748907807884,0.02,2611.9,2611.7,3.82887481]
[1748907808599,0.02,2611.9,2611.3,8.0]
[1748907808799,0.02,2611.9,2611.7,3.82889469]
[1748907809307,0.02,2611.9,2611.8,3.82877708]
[1748907811614,0.02,2611.9,2611.7,3.82887135]
[1748907812327,0.06785886,2611.9,2611.5,3.82920284]
[1748907812486,0.06785886,2611.9,2611.1,0.0526]
[1748907812487,4.187,2611.8,2611.6,3.829037]
[1748907813318,4.187,2611.8,2611.1,0.0526]
[1748907813632,0.0478627,2611.7,2611.4,3.82932878]
[1748907813861,0.0478627,2611.7,2611.3,3.82947794]
[1748907814056,0.0478627,2611.7,2611.2,3.82960439]
[1748907814380,1.0354,2611.6,2611.1,3.82978727]
[1748907814691,0.04786842,2611.5,2611.1,3.82978727]
[1748907814891,0.04786842,2611.5,2611.2,3.82964059]
[1748907815393,0.04786842,2611.5,2611.3,3.82942446]
[1748907816241,0.04786842,2611.5,2611.4,3.82936355]
[1748907816442,1.0354,2611.6,2611.5,3.82921692]
[1748907816856,1.0354,2611.6,2611.4,3.82932473]
[1748907817262,1.56202677,2611.6,2611.4,3.82932473]
[1748907818096,1.56202677,2611.6,2611.3,3.82939915]
[1748907818662,1.56202677,2611.6,2611.3,3.82945854]
[1748907819678,1.46202677,2611.6,2611.5,3.82921692]
[1748907819881,0.52662677,2611.6,2611.5,3.82921692]
[1748907820047,0.02,2611.9,2611.6,3.82898793]
[1748907820545,0.02,2611.9,2611.8,3.82877708]
[1748907820746,0.02,2611.9,2611.6,3.82900681]
[1748907820945,0.02,2611.9,2611.5,3.82915331]
[1748907821174,0.56088595,2611.9,2611.5,3.82915331]
[1748907821374,0.56088595,2611.9,2611.4,4.22485874]
[1748907821571,0.56088595,2611.9,2611.6,3.82906199]
[1748907821743,0.56088595,2611.9,2611.5,3.82911943]
[1748907821744,0.0478612,2611.8,2611.5,3.82911943]
[1748907822276,0.0478612,2611.8,2611.3,3.82940664]
[1748907822476,1.55218595,2611.9,2611.1,0.3956]
[1748907822680,0.27181859,2611.8,2611.4,3.82928445]
[1748907823181,0.27181859,2611.8,2611.1,4.22536576]
[1748907823385,1.55218595,2611.9,2611.6,3.82898909]
[1748907823585,1.60005198,2611.9,2611.6,3.82898909]
[1748907824961,1.60005198,2611.9,2611.6,3.82905197]
[1748907825187,5.22216603,2611.9,2611.6,3.82905197]
[1748907825913,5.22216603,2611.9,2611.7,3.82890322]
[1748907826194,5.22216603,2611.9,2611.8,3.82877708]
[1748907826482,5.53311696,2611.9,2611.8,3.82877708]
[1748907826795,5.1693,2611.9,2611.8,3.82877708]
[1748907827855,5.85069093,2611.9,2611.6,3.82898572]
[1748907828354,4.154,2611.8,2611.6,3.82898572]
[1748907828978,4.154,2611.8,2611.7,3.82892368]
[1748907830071,4.154,2611.8,2611.6,3.82901785]
[1748907830798,4.154,2611.8,2611.5,3.82918465]
[1748907830946,4.73866909,2611.8,2611.5,3.82918465]
[1748907831149,4.73866909,2611.8,2611.6,3.82904419]
[1748907831786,4.73866909,2611.8,2611.5,3.82915382]
[1748907832090,4.73866909,2611.8,2611.6,3.82898978]
[1748907834152,0.58466909,2611.8,2611.7,3.82892368]
[1748907834357,1.05916093,2611.9,2611.8,3.82877708]
[1748907834691,0.02,2611.9,2611.8,3.82877708]
[1748907835095,0.02,2611.9,2611.7,0.3956]
[1748907835297,0.02,2611.9,2611.6,3.82897791]
[1748907835456,4.169,2611.9,2611.7,3.82890673]
[1748907835773,0.04785874,2611.8,2611.2,0.3956]
[1748907835973,0.04785874,2611.8,2611.5,3.82921009]
[1748907836181,0.04785874,2611.8,2611.6,3.82904557]
[1748907836383,0.04785874,2611.8,2611.6,3.82906867]
[1748907836889,0.04785874,2611.8,2611.7,3.82892368]
[1748907837053,0.04785874,2611.8,2611.3,3.8295102]
[1748907837261,0.04785874,2611.8,2611.1,0.3956]
[1748907837585,0.61796761,2611.8,2611.1,0.3956]
[1748907837985,0.61796761,2611.8,2611.4,3.82923666]
[1748907838156,7.18376715,2611.8,2611.2,3.82957239]
[1748907838360,7.18376715,2611.8,2611.2,3.82957201]
[1748907838576,1.18666972,2611.7,2611.2,3.82957201]
[1748907838807,0.0478678,2611.6,2611.2,3.82957201]
[1748907838950,4.149,2611.5,2611.1,3.82979373]
[1748907839158,1.03786779,2611.4,2610.8,0.3956]
[1748907839357,1.55655457,2611.4,2611.1,3.8296903]
[1748907839772,8.12235411,2611.4,2610.6,0.3956]
[1748907839972,8.07448632,2611.4,2610.9,3.83005915]
[1748907840176,0.55,2611.0,2609.8,0.59448946]
[1748907840378,1.0236,2610.2,2609.9,4.0]
[1748907840583,4.95483434,2610.1,2609.7,3.83176849]
[1748907840910,8.0,2610.9,2610.0,3.83141762]
[1748907841204,1.037,2610.8,2610.2,3.83112137]
[1748907841411,4.19588539,2610.7,2610.1,3.83113916]
[1748907841609,4.19588539,2610.7,2609.7,4.15343466]
[1748907841781,4.71917393,2610.7,2609.7,4.15343466]
[1748907841964,4.71917393,2610.7,2610.0,3.83135876]
[1748907842300,4.71917393,2610.7,2609.7,0.3216]
[1748907842506,4.71917393,2610.7,2609.8,3.83165384]
[1748907842507,0.57117393,2610.7,2609.8,3.83165384]
[1748907842674,4.148,2610.6,2609.8,3.83165384]
[1748907842881,1.31980537,2610.5,2609.8,3.83165384]
[1748907843409,0.9443,2610.4,2609.8,3.83165384]
[1748907843604,0.9443,2610.4,2609.8,3.83171124]
[1748907843763,0.9443,2610.4,2609.7,0.3216]
[1748907843969,5.0933,2610.4,2609.9,3.83143444]
[1748907844496,5.0933,2610.4,2609.8,3.83168579]
[1748907844497,0.04788544,2610.3,2609.8,3.83168579]
[1748907844876,0.04788544,2610.3,2609.7,4.15341392]
[1748907845079,0.04788544,2610.3,2609.8,3.83165727]
[1748907845406,0.04788544,2610.3,2609.5,3.83212377]
[1748907845573,5.72461898,2610.4,2609.8,3.83159633]
[1748907845775,0.5724619,2610.3,2609.8,3.83159038]
[1748907846308,0.5724619,2610.3,2610.0,3.83130872]
[1748907846609,1.172,2610.4,2610.1,3.83117462]
[1748907846784,1.172,2610.4,2609.6,3.8320049]
[1748907847297,1.172,2610.4,2610.1,3.83124279]
[1748907847676,1.172,2610.4,2609.6,3.8320049]
[1748907847677,0.9918,2610.7,2609.6,0.29224379]
[1748907847881,0.90936978,2611.4,2609.6,0.29224379]
[1748907847882,0.9879,2611.0,2609.7,7.11579954]
[1748907848083,9.55435632,2611.0,2610.5,3.83060411]
[1748907848395,0.5185781,2611.0,2610.8,3.83012964]
[1748907848589,8.0,2611.1,2610.8,3.83012964]
[1748907848804,8.0,2611.2,2610.8,3.83012199]
[1748907849107,9.2078,2611.3,2610.1,0.55]
[1748907849108,0.9398,2611.3,2610.1,0.55]
[1748907849427,4.154,2611.8,2611.4,3.82927622]
[1748907849712,1.172,2612.0,2611.6,3.8289449]
[1748907849713,0.9999,2611.9,2611.6,3.8289449]
[1748907849915,0.9999,2611.9,2610.9,3.83000574]
[1748907850101,1.63259,2611.9,2611.4,3.82933854]
[1748907850303,1.63259,2611.9,2610.6,8.0]
[1748907850508,0.02,2611.9,2611.5,3.82911095]
[1748907851085,0.02,2611.9,2611.4,3.82932065]
[1748907851280,0.06785825,2611.9,2610.6,1.67294036]
[1748907851507,0.06785825,2611.9,2611.5,3.82918475]
[1748907851783,0.44218582,2611.9,2611.6,3.82896611]
[1748907852095,0.02,2611.9,2611.5,3.82920363]
[1748907852615,0.02,2611.9,2610.8,2.22294036]
[1748907852616,0.02,2611.9,2611.0,3.82985516]
[1748907852818,0.02,2611.9,2611.4,3.82927995]
[1748907853016,0.02,2611.9,2611.2,3.8295714]
[1748907853317,0.02,2611.9,2610.9,0.55]
[1748907853520,0.02,2611.9,2611.8,3.82877708]
[1748907853832,0.02,2611.9,2611.1,3.82980353]
[1748907853833,0.02,2611.9,2611.2,0.55]
[1748907854124,0.02,2611.9,2611.8,3.82877708]
[1748907855834,0.02,2611.9,2611.7,3.82884062]
[1748907856217,0.02,2611.9,2611.2,8.0]
[1748907856418,0.02,2611.9,2611.4,3.82930555]
[1748907856726,0.02,2611.9,2611.0,8.0]
[1748907857095,0.02,2611.9,2610.9,3.8300969]
[1748907857096,0.02,2611.9,2611.4,3.82924869]
[1748907857295,1.01276046,2611.8,2611.4,3.82930536]
[1748907857708,6.56579954,2611.7,2610.3,3.83097728]
[1748907857901,0.04786999,2611.6,2610.9,3.83005415]
[1748907858103,4.153,2611.5,2610.5,3.83068377]
[1748907858408,0.42008663,2611.5,2611.4,3.82936355]
[1748907858735,1.159,2611.6,2611.5,3.82917539]
[1748907859032,5.31,2611.6,2611.4,3.82925714]
[1748907859235,0.9649,2611.8,2611.4,3.82925714]
[1748907859402,0.9649,2611.8,2611.6,3.82900838]
[1748907859602,0.9649,2611.8,2611.1,3.8297926]
[1748907859829,1.59449,2611.8,2610.9,3.8300969]
[1748907859995,0.02,2611.9,2611.7,3.82892368]
[1748907860198,0.02,2611.9,2611.7,3.8287883]
[1748907860434,0.02,2611.9,2611.6,3.82900756]
[1748907860600,1.45383594,2611.9,2611.4,3.82935225]
[1748907860801,0.04786073,2611.8,2611.4,3.82935225]
[1748907861002,0.04786073,2611.8,2611.5,3.82921324]
[1748907861434,1.50169665,2611.9,2611.5,3.82913594]
[1748907861598,1.50169665,2611.9,2611.5,3.82920896]
[1748907861798,0.95016967,2611.8,2611.5,3.82920896]
[1748907862241,0.95016967,2611.8,2611.5,3.82910657]
[1748907862445,0.95016967,2611.8,2610.8,3.8302436]
[1748907862446,2.10916967,2611.8,2610.8,3.8302436]
[1748907862737,2.10916967,2611.8,2611.5,3.82909397]
[1748907863105,2.10916967,2611.8,2611.4,3.82929657]
[1748907863531,0.68106382,2611.7,2611.3,3.82940914]
[1748907863745,0.9438,2611.6,2611.1,3.82980353]
[1748907863908,0.9438,2611.6,2611.5,3.82921692]
[1748907864241,5.0958,2611.6,2611.5,3.82921692]
[1748907864440,5.0958,2611.6,2610.8,5.50309091]
[1748907864738,5.0958,2611.6,2611.3,3.82937385]
[1748907864943,5.88440395,2611.6,2611.3,3.82939154]
[1748907865246,5.88440395,2611.6,2610.6,11.83042575]
[1748907865247,0.04786423,2611.5,2611.2,3.82965238]
[1748907865412,0.04786423,2611.5,2611.1,3.82975782]
[1748907866050,0.04786423,2611.5,2610.3,8.38338633]
[1748907866051,0.04786423,2611.5,2611.2,3.8296445]
[1748907866365,0.04786423,2611.5,2611.0,3.82981569]
[1748907866556,1.297671,2611.5,2611.0,3.82981569]
[1748907866842,0.9628,2611.0,2609.7,3.83185806]
[1748907867001,6.56579954,2610.7,2610.1,3.83118031]
[1748907867202,6.56579954,2610.7,2609.6,3.83194939]
[1748907867203,4.19788673,2610.6,2610.2,3.83111487]
[1748907867422,4.19788673,2610.6,2609.7,3.83185806]
[1748907867423,4.19788673,2610.6,2609.4,8.55]
[1748907867669,4.19788673,2610.6,2609.4,8.0]
[1748907867850,1.07636863,2610.5,2610.2,3.83103727]
[1748907869369,1.07636863,2610.5,2610.0,3.83134423]
[1748907869538,1.0178,2610.4,2610.1,3.83115669]
[1748907870066,1.0178,2610.4,2609.8,3.83162926]
[1748907870286,0.25730386,2610.3,2609.9,3.83152047]
[1748907871048,0.25730386,2610.3,2609.8,3.83169886]
[1748907871248,0.75285995,2610.9,2610.5,3.83067838]
[1748907871484,0.75285995,2610.9,2610.0,3.83137103]
[1748907871485,4.149,2610.9,2610.8,3.83011972]
[1748907872058,0.9786,2611.0,2610.9,3.8300969]
[1748907872394,5.1286,2611.0,2610.9,3.8300969]
[1748907872573,8.0,2611.7,2610.3,0.0834]
[1748907872574,1.159,2611.2,2610.3,0.0834]
[1748907872783,4.15,2611.1,2610.8,3.8301132]
[1748907873097,4.15,2611.1,2610.9,3.83006366]
[1748907873275,4.15,2611.1,2610.3,0.0834]
[1748907873492,0.04787347,2611.2,2611.1,3.82980353]
[1748907873795,0.9808,2611.4,2611.2,3.82957048]
[1748907873796,5.1308,2611.4,2611.2,3.82957048]
[1748907874092,5.75978,2611.4,2611.3,3.8295102]
[1748907874603,5.75978,2611.4,2611.2,3.82959159]
[1748907874750,5.75978,2611.4,2611.0,3.82984389]
[1748907875663,0.0478702,2611.3,2611.0,3.82984389]
[1748907875857,0.0478702,2611.3,2610.9,3.83003978]
[1748907876182,0.62863522,2611.3,2610.9,3.83003978]
[1748907876585,0.62863522,2611.3,2609.8,4.81457483]
[1748907876586,7.19443476,2611.3,2609.8,4.81457483]
[1748907876788,7.19443476,2611.3,2610.8,3.83011984]
[1748907877590,7.19443476,2611.3,2610.2,3.83103331]
[1748907877780,7.19443476,2611.3,2610.8,3.83013359]
[1748907878088,1.29542148,2611.2,2610.9,3.83009549]
[1748907878293,0.9808,2611.4,2610.5,8.0]
[1748907878592,5.1308,2611.4,2611.1,3.82967235]
[1748907879356,5.1308,2611.4,2611.2,3.82963061]
[1748907879555,0.9808,2611.4,2611.3,3.8295102]
[1748907879763,5.1308,2611.4,2611.3,3.8295102]
[1748907880092,0.9808,2611.4,2611.3,3.8295102]
[1748907880321,5.1308,2611.4,2611.3,3.8295102]
[1748907880456,0.9808,2611.4,2611.3,3.8295102]
[1748907880782,4.15,2611.6,2611.5,3.82915408]
[1748907880962,6.3598,2611.7,2611.5,3.82915408]
[1748907881378,6.3598,2611.7,2611.4,3.82930266]
[1748907881785,6.3598,2611.7,2611.5,3.82921471]
[1748907881986,4.149,2611.6,2611.5,3.82921471]
[1748907882560,4.149,2611.6,2611.4,3.82931605]
[1748907884909,5.44145995,2611.6,2611.3,3.82949533]
[1748907885326,5.44145995,2611.6,2610.0,0.0834]
[1748907885327,1.0521,2611.3,2610.0,0.0834]
[1748907885516,5.35387868,2611.2,2610.2,8.0]
[1748907885828,5.35387868,2611.2,2610.6,3.83040331]
[1748907886121,6.6510565,2611.2,2610.6,3.83040331]
[1748907886295,6.6510565,2611.2,2610.7,3.83037678]
[1748907886724,1.0243,2611.1,2610.2,8.0]
[1748907886925,0.04787951,2611.0,2610.0,0.0834]
[1748907887222,1.0243,2610.9,2610.5,3.83066505]
[1748907887425,4.149,2610.8,2610.5,3.83056544]
[1748907888028,5.306,2610.7,2610.6,3.83053704]
[1748907888596,4.149,2610.7,2610.6,3.83053704]
[1748907891129,1.0243,2610.9,2610.7,3.830295]
[1748907891296,4.149,2610.8,2610.7,3.830295]
[1748907892752,1.0243,2610.9,2610.8,3.8302436]
[1748907893031,1.157,2611.0,2610.9,3.8300969]
[1748907893202,1.157,2611.0,2610.7,3.830295]
[1748907893203,1.0051,2611.2,2611.1,3.82980353]
[1748907893408,2.1621,2611.5,2611.4,3.82936355]
[1748907893745,0.02,2611.9,2611.8,3.82877708]
[1748907900406,1.10425516,2611.9,2611.6,3.82896172]
[1748907900629,1.52115516,2611.9,2611.7,3.82890602]
[1748907901300,1.52115516,2611.9,2611.6,3.82897435]